fUST/lending_fUST_20250609
["ID","MTS","AMOUNT","RATE_DAILY","PERIOD"]
[365118996,1749474647969,-440.0,0.00022739,4]
[365118997,1749474647978,-440.0,0.00022739,4]
[365118998,1749474647988,-400.0,0.00022739,4]
[365118999,1749474647998,-8516.89,0.00022739,4]
[365119000,1749474648007,-440.0,0.00022739,4]
[365119001,1749474648017,-400.0,0.00022739,4]
[365119002,1749474648026,-440.0,0.00022739,4]
[365119003,1749474648036,-532.02,0.00022739,4]
[365119004,1749474648045,-400.0,0.00022739,4]
[365119005,1749474648055,-653.57,0.00022739,4]
[365119006,1749474648066,-3787.32,0.00022739,4]
[365119007,1749474648075,-151.0,0.00022739,7]
[365119008,1749474648085,-440.0,0.00022739,4]
[365119009,1749474648095,-440.0,0.00022739,4]
[365119010,1749474648105,-440.0,0.00022739,4]
[365119011,1749474648114,-1938.33,0.00022739,4]
[365119012,1749474648124,-547.08,0.00022739,4]
[365119013,1749474648133,-440.0,0.00022739,4]
[365119014,1749474648143,-440.0,0.00022739,4]
[365119015,1749474648153,-440.0,0.00022739,4]
[365119016,1749474648162,-440.0,0.00022739,4]
[365119017,1749474648171,-440.0,0.00022739,4]
[365119018,1749474648181,-440.0,0.00022739,4]
[365119019,1749474648190,-695.15,0.00022739,4]
[365119020,1749474648267,-4898.39,0.00022739,4]
[365119021,1749474648277,-440.0,0.00022739,4]
[365119022,1749474648287,-440.0,0.00022739,4]
[365119023,1749474648296,-440.0,0.00022739,4]
[365119024,1749474648307,-440.0,0.00022739,4]
[365119025,1749474648317,-440.0,0.00022739,4]
[365119026,1749474648327,-663.04,0.00022739,4]
[365119027,1749474648337,-440.0,0.00022739,4]
[365119028,1749474648347,-440.0,0.00022739,4]
[365119029,1749474648356,-440.0,0.00022739,4]
[365119030,1749474648366,-440.0,0.00022739,4]
[365119031,1749474648375,-440.0,0.00022739,4]
[365119032,1749474648385,-440.0,0.00022739,4]
[365119033,1749474648395,-440.0,0.00022739,4]
[365119034,1749474648405,-440.0,0.00022739,4]
[365119035,1749474648415,-440.0,0.00022739,4]
[365119036,1749474648425,-686.85,0.00022739,4]
[365119037,1749474648435,-1865.17,0.00022739,4]
[365119038,1749474648445,-440.0,0.00022739,4]
[365119039,1749474648454,-440.0,0.00022739,4]
[365119040,1749474648463,-440.0,0.00022739,4]
[365119041,1749474648473,-440.0,0.00022739,4]
[365119042,1749474648483,-995.36,0.00022739,4]
[365119043,1749474648492,-4114.26,0.00022739,4]
[365119044,1749474648502,-440.0,0.00022739,4]
[365119045,1749474648512,-2745.12,0.00022739,4]
[365119046,1749474648522,-4986.72,0.00022739,4]
[365119047,1749474648532,-1090.86,0.00022739,4]
[365119048,1749474648541,-440.0,0.00022739,4]
[365119049,1749474648551,-440.0,0.00022739,4]
[365119050,1749474648561,-440.0,0.00022739,4]
[365119051,1749474648571,-588.56,0.00022739,4]
[365119052,1749474648580,-440.0,0.00022739,4]
[365119053,1749474648591,-979.69,0.00022739,4]
[365119054,1749474648600,-440.0,0.00022739,4]
[365119055,1749474648610,-390.0,0.00022739,4]
[365119056,1749474648620,-472.24,0.00022739,4]
[365119057,1749474648630,-440.0,0.00022739,4]
[365119058,1749474648640,-440.0,0.00022739,4]
[365119059,1749474648650,-440.0,0.00022739,4]
[365119060,1749474648663,-367.48791154,0.00022739,4]
[365119061,1749474648673,-440.0,0.00022739,4]
[365119062,1749474648683,-440.0,0.00022739,4]
[365119063,1749474648694,-440.0,0.00022739,4]
[365119064,1749474648704,-440.0,0.00022739,4]
[365119065,1749474648714,-1254.23,0.00022739,4]
[365119066,1749474648723,-440.0,0.00022739,4]
[365119067,1749474648734,-440.0,0.00022739,4]
[365119068,1749474648745,-440.0,0.00022739,4]
[365119069,1749474648755,-440.0,0.00022739,4]
[365119070,1749474648764,-440.0,0.00022739,4]
[365119071,1749474648774,-1920.52,0.00022739,4]
[365119072,1749474648784,-1636.47,0.00022739,4]
[365119073,1749474648794,-390.0,0.00022739,4]
[365119074,1749474648803,-440.0,0.00022739,4]
[365119075,1749474648813,-627.51,0.00022739,4]
[365119076,1749474648823,-440.0,0.00022739,4]
[365119077,1749474648833,-420.0,0.00022739,4]
[365119078,1749474648843,-440.0,0.00022739,4]
[365119079,1749474648853,-179.79950307,0.00022739,4]
[365119080,1749474648862,-736.45,0.00022739,4]
[365119081,1749474648873,-440.0,0.00022739,4]
[365119082,1749474648883,-440.0,0.00022739,4]
[365119083,1749474648893,-440.0,0.00022739,4]
[365119084,1749474648902,-440.0,0.00022739,4]
[365119085,1749474648912,-440.0,0.00022739,4]
[365119086,1749474648922,-151.0,0.00022739,7]
[365119087,1749474648931,-151.0,0.00022739,7]
[365119088,1749474648941,-440.0,0.00022739,4]
[365119089,1749474648951,-607.69,0.00022739,4]
[365119090,1749474648961,-440.0,0.00022739,4]
[365119091,1749474648971,-847.9,0.00022739,4]
[365119092,1749474648981,-440.0,0.00022739,4]
[365119093,1749474648991,-440.0,0.00022739,4]
[365119094,1749474649001,-440.0,0.00022739,4]
[365119095,1749474649011,-1920.28,0.00022739,4]
[365119096,1749474649021,-151.0,0.00022739,7]
[365119097,1749474649031,-440.0,0.00022739,4]
[365119098,1749474649041,-440.0,0.00022739,4]
[365119099,1749474649051,-2918.21,0.00022739,4]
[365119100,1749474649061,-390.0,0.00022739,4]
[365119101,1749474649071,-440.0,0.00022739,4]
[365119102,1749474649080,-240.0,0.00022739,2]
[365119103,1749474649089,-440.0,0.00022739,4]
[365119104,1749474649099,-440.0,0.00022739,4]
[365119105,1749474649109,-151.0,0.00022739,7]
[365119106,1749474649118,-440.0,0.00022739,4]
[365119107,1749474649129,-440.0,0.00022739,4]
[365119108,1749474649139,-440.0,0.00022739,4]
[365119109,1749474649149,-151.0,0.00022739,7]
[365119110,1749474649159,-440.0,0.00022739,4]
[365119111,1749474649169,-440.0,0.00022739,4]
[365119112,1749474649179,-440.0,0.00022739,4]
[365119113,1749474649189,-1168.5,0.00022739,4]
[365119114,1749474649199,-390.0,0.00022739,4]
[365119115,1749474649208,-541.39,0.00022739,4]
[365119116,1749474649218,-440.0,0.00022739,4]
[365119117,1749474649229,-787.55,0.00022739,4]
[365119118,1749474649238,-2032.57,0.00022739,4]
[365119119,1749474649248,-440.0,0.00022739,4]
[365119120,1749474649258,-440.0,0.00022739,4]
[365119121,1749474649268,-440.0,0.00022739,4]
[365119122,1749474649277,-440.0,0.00022739,4]
[365119123,1749474649287,-947.64,0.00022739,4]
[365119124,1749474649297,-440.0,0.00022739,4]
[365119125,1749474649308,-4353.31,0.00022739,4]
[365119126,1749474649318,-208.15747046,0.00022739,4]
[365119127,1749474649328,-400.0,0.00022739,4]
[365119128,1749474649339,-440.0,0.00022739,4]
[365119129,1749474649349,-1150.35,0.00022739,4]
[365119130,1749474649359,-2750.0,0.00022747,7]
[365119131,1749474649370,-920.61653262,0.00022753,2]
[365119132,1749474649380,-150.0,0.00022773,2]
[365119133,1749474649390,-405.0,0.00022799,2]
[365119134,1749474649400,-158.44491473,0.00022822,2]
[365119135,1749474649410,-158.44491473,0.00022822,2]
[365119136,1749474649420,-1826.05776513,0.00022831,8]
[365119137,1749474649430,-1200.0,0.00022842,2]
[365119138,1749474649440,-500.0,0.00022869,2]
[365119139,1749474649516,-500.0,0.00022869,2]
[365119140,1749474649527,-500.0,0.00022869,2]
[365119141,1749474649536,-151.0,0.000229,8]
[365119142,1749474649546,-159.96257319,0.00022904,2]
[365119143,1749474649556,-1826.05776513,0.00022934,8]
[365119144,1749474649566,-182.63514545,0.00022944,2]
[365119145,1749474649576,-121107.3537412,0.00022968,2]
[365119146,1749474649586,-151.0,0.00022968,7]
[365119147,1749474649596,-151.0,0.00022968,7]
[365119148,1749474649605,-2750.0,0.00022981,7]
[365119149,1749474649615,-3852.38,0.00022985,2]
[365119150,1749474649624,-1811.47,0.00023,7]
[365119151,1749474649634,-834.7738823,0.00023,3]
[365119152,1749474649643,-160.0,0.00023,3]
[365119153,1749474649654,-424.05420114,0.00023,3]
[365119154,1749474649665,-229.64266968,0.00023,3]
[365119155,1749474649674,-27903.47287482,0.00023012,2]
[365119156,1749474649685,-15483.07386291,0.00023012,2]
[365119157,1749474649695,-440.0,0.00023013,4]
[365119158,1749474649705,-440.0,0.00023013,4]
[365119159,1749474649715,-440.0,0.00023013,4]
[365119160,1749474649724,-177.98033384,0.00023013,4]
[365119161,1749474649735,-440.0,0.00023013,4]
[365119162,1749474649745,-440.0,0.00023013,4]
[365119163,1749474649755,-440.0,0.00023013,4]
[365119164,1749474649764,-440.0,0.00023013,4]
[365119165,1749474649774,-440.0,0.00023013,4]
[365119166,1749474649784,-440.0,0.00023013,4]
[365119167,1749474649793,-500.0,0.00023013,4]
[365119168,1749474649803,-440.0,0.00023013,4]
[365119169,1749474649813,-440.0,0.00023013,4]
[365119170,1749474649822,-252.15,0.00023013,4]
[365119171,1749474649832,-440.0,0.00023013,4]
[365119172,1749474649842,-440.0,0.00023013,4]
[365119173,1749474649852,-440.0,0.00023013,4]
[365119174,1749474649862,-440.0,0.00023013,4]
[365119175,1749474649871,-440.0,0.00023013,4]
[365119176,1749474649881,-440.0,0.00023013,4]
[365119177,1749474649891,-440.0,0.00023013,4]
[365119178,1749474649901,-440.0,0.00023013,4]
[365119179,1749474649911,-440.0,0.00023013,4]
[365119180,1749474649921,-440.0,0.00023013,4]
[365119181,1749474649931,-440.0,0.00023013,4]
[365119182,1749474649941,-440.0,0.00023013,4]
[365119183,1749474649950,-440.0,0.00023013,4]
[365119184,1749474649960,-440.0,0.00023013,4]
[365119185,1749474649970,-440.0,0.00023013,4]
[365119186,1749474649979,-440.0,0.00023013,4]
[365119187,1749474649988,-440.0,0.00023013,4]
[365119188,1749474649998,-440.0,0.00023013,4]
[365119189,1749474650008,-440.0,0.00023013,4]
[365119190,1749474650018,-440.0,0.00023013,4]
[365119191,1749474650028,-440.0,0.00023013,4]
[365119192,1749474650038,-440.0,0.00023013,4]
[365119193,1749474650048,-440.0,0.00023013,4]
[365119194,1749474650058,-440.0,0.00023013,4]
[365119195,1749474650067,-440.0,0.00023013,4]
[365119196,1749474650077,-440.0,0.00023013,4]
[365119197,1749474650087,-440.0,0.00023013,4]
[365119198,1749474650097,-440.0,0.00023013,4]
[365119199,1749474650106,-440.0,0.00023013,4]
[365119200,1749474650117,-440.0,0.00023013,4]
[365119201,1749474650126,-440.0,0.00023013,2]
[365119202,1749474650136,-440.0,0.00023013,4]
[365119203,1749474650146,-516.46840548,0.00023013,4]
[365119204,1749474650155,-440.0,0.00023013,4]
[365119205,1749474650164,-440.0,0.00023013,4]
[365119206,1749474650174,-422.02,0.00023013,4]
[365119207,1749474650184,-440.0,0.00023013,4]
[365119208,1749474650193,-440.0,0.00023013,4]
[365119209,1749474650202,-390.0,0.00023013,4]
[365119210,1749474650211,-440.0,0.00023013,4]
[365119211,1749474650222,-440.0,0.00023013,4]
[365119212,1749474650231,-440.0,0.00023013,4]
[365119213,1749474650241,-440.0,0.00023013,4]
[365119214,1749474650250,-8516.89,0.00023013,4]
[365119215,1749474650260,-440.0,0.00023013,4]
[365119216,1749474650269,-340.09156698,0.00023013,4]
[365119217,1749474650279,-532.02,0.00023013,4]
[365119218,1749474650289,-653.57,0.00023013,4]
[365119219,1749474650298,-3787.32,0.00023013,4]
[365119220,1749474650308,-471.77120038,0.00023013,4]
[365119221,1749474650318,-440.0,0.00023013,4]
[365119222,1749474650327,-440.0,0.00023013,4]
[365119223,1749474650337,-1938.33,0.00023013,4]
[365119224,1749474650347,-547.08,0.00023013,4]
[365119225,1749474650356,-440.0,0.00023013,4]
[365119226,1749474650366,-440.0,0.00023013,4]
[365119227,1749474650376,-440.0,0.00023013,4]
[365119228,1749474650385,-440.0,0.00023013,4]
[365119229,1749474650395,-440.0,0.00023013,4]
[365119230,1749474650405,-695.15,0.00023013,4]
[365119231,1749474650414,-4898.39,0.00023013,4]
[365119232,1749474650424,-440.0,0.00023013,4]
[365119233,1749474650434,-440.0,0.00023013,4]
[365119234,1749474650444,-440.0,0.00023013,4]
[365119235,1749474650453,-440.0,0.00023013,4]
[365119236,1749474650463,-440.0,0.00023013,4]
[365119237,1749474650472,-663.04,0.00023013,4]
[365119238,1749474650482,-440.0,0.00023013,4]
[365119239,1749474650492,-380.0,0.00023013,4]
[365119240,1749474650502,-370.0,0.00023013,4]
[365119241,1749474650512,-440.0,0.00023013,4]
[365119242,1749474650522,-440.0,0.00023013,4]
[365119243,1749474650532,-440.0,0.00023013,4]
[365119244,1749474650542,-440.0,0.00023013,4]
[365119245,1749474650551,-440.0,0.00023013,4]
[365119246,1749474650561,-440.0,0.00023013,4]
[365119247,1749474650571,-686.85,0.00023013,4]
[365119248,1749474650581,-1865.17,0.00023013,4]
[365119249,1749474650651,-440.0,0.00023013,4]
[365119250,1749474650669,-380.0,0.00023013,4]
[365119251,1749474650679,-440.0,0.00023013,4]
[365119252,1749474650689,-454.5057878,0.00023013,4]
[365119253,1749474650699,-995.36,0.00023013,4]
[365119254,1749474650709,-4114.26,0.00023013,4]
[365119255,1749474650719,-440.0,0.00023013,4]
[365119256,1749474650729,-4986.72,0.00023013,4]
[365119257,1749474650741,-2745.12,0.00023013,4]
[365119258,1749474650751,-1090.86,0.00023013,4]
[365119259,1749474650760,-440.0,0.00023013,4]
[365119260,1749474650771,-156.913369,0.00023013,4]
[365119261,1749474650782,-440.0,0.00023013,4]
[365119262,1749474650792,-588.56,0.00023013,4]
[365119263,1749474650803,-440.0,0.00023013,4]
[365119264,1749474650814,-979.69,0.00023013,4]
[365119265,1749474650824,-440.0,0.00023013,4]
[365119266,1749474650834,-472.24,0.00023013,4]
[365119267,1749474650844,-440.0,0.00023013,4]
[365119268,1749474650854,-440.0,0.00023013,4]
[365119269,1749474650865,-440.0,0.00023013,4]
[365119270,1749474650875,-440.0,0.00023013,4]
[365119271,1749474650884,-440.0,0.00023013,4]
[365119272,1749474650895,-440.0,0.00023013,4]
[365119273,1749474650905,-377.64132327,0.00023013,4]
[365119274,1749474650915,-1254.23,0.00023013,4]
[365119275,1749474650925,-440.0,0.00023013,4]
[365119276,1749474650934,-376.98836196,0.00023013,4]
[365119277,1749474650944,-360.0,0.00023013,4]
[365119278,1749474650954,-440.0,0.00023013,4]
[365119279,1749474650964,-444.08485364,0.00023013,4]
[365119280,1749474650974,-1920.52,0.00023013,4]
[365119281,1749474650983,-1636.47,0.00023013,4]
[365119282,1749474650994,-440.0,0.00023013,4]
[365119283,1749474651003,-627.51,0.00023013,4]
[365119284,1749474651013,-440.0,0.00023013,4]
[365119285,1749474651022,-440.0,0.00023013,4]
[365119286,1749474651032,-736.45,0.00023013,4]
[365119287,1749474651043,-335.08078176,0.00023013,4]
[365119288,1749474651053,-218.07994512,0.00023013,4]
[365119289,1749474651062,-440.0,0.00023013,4]
[365119290,1749474651072,-440.0,0.00023013,4]
[365119291,1749474651081,-440.0,0.00023013,4]
[365119292,1749474651091,-208.245145,0.00023013,7]
[365119293,1749474651100,-151.0,0.00023013,7]
[365119294,1749474651109,-440.0,0.00023013,4]
[365119295,1749474651119,-607.69,0.00023013,4]
[365119296,1749474651128,-440.0,0.00023013,4]
[365119297,1749474651136,-847.9,0.00023013,4]
[365119298,1749474651145,-299.44754562,0.00023013,4]
[365119299,1749474651154,-440.0,0.00023013,4]
[365119300,1749474651175,-440.0,0.00023013,4]
[365119301,1749474651191,-1920.28,0.00023013,4]
[365119302,1749474651211,-151.0,0.00023013,7]
[365119303,1749474651231,-440.0,0.00023013,4]
[365119304,1749474651251,-440.0,0.00023013,4]
[365119305,1749474651289,-2918.21,0.00023013,4]
[365119306,1749474651320,-440.0,0.00023013,4]
[365119307,1749474651340,-440.0,0.00023013,4]
[365119308,1749474651352,-440.0,0.00023013,4]
[365119309,1749474651372,-151.0,0.00023013,7]
[365119310,1749474651395,-440.0,0.00023013,4]
[365119311,1749474651412,-440.0,0.00023013,4]
[365119312,1749474651424,-440.0,0.00023013,4]
[365119313,1749474651442,-151.0,0.00023013,7]
[365119314,1749474651454,-440.0,0.00023013,4]
[365119315,1749474651469,-440.0,0.00023013,4]
[365119316,1749474651482,-440.0,0.00023013,4]
[365119317,1749474651500,-1168.5,0.00023013,4]
[365119318,1749474651515,-541.39,0.00023013,4]
[365119319,1749474651529,-440.0,0.00023013,4]
[365119320,1749474651543,-787.55,0.00023013,4]
[365119321,1749474651559,-2032.57,0.00023013,4]
[365119322,1749474651573,-440.0,0.00023013,4]
[365119323,1749474651587,-210.42,0.00023013,4]
[365119324,1749474651600,-440.0,0.00023013,4]
[365119325,1749474651614,-440.0,0.00023013,4]
[365119326,1749474651629,-947.64,0.00023013,4]
[365119327,1749474651644,-440.0,0.00023013,4]
[365119328,1749474651661,-4353.31,0.00023013,4]
[365119329,1749474651676,-440.0,0.00023013,4]
[365119330,1749474651690,-1150.35,0.00023013,4]
[365119331,1749474651704,-1826.05776513,0.00023038,8]
[365119332,1749474651718,-600.0,0.0002304,2]
[365119333,1749474651731,-500.0,0.00023068,2]
[365119334,1749474651744,-500.0,0.00023073,2]
[365119335,1749474651756,-500.0,0.00023073,2]
[365119336,1749474651770,-500.0,0.00023073,2]
[365119337,1749474651784,-500.0,0.00023073,2]
[365119338,1749474651800,-500.0,0.00023073,2]
[365119339,1749474651816,-500.0,0.00023073,2]
[365119340,1749474651831,-600.0,0.00023073,2]
[365119341,1749474651847,-15621.28582159,0.00023087,7]
[365119342,1749474651871,-160.0,0.00023108,3]
[365119343,1749474651886,-158.44491473,0.00023123,2]
[365119344,1749474651902,-158.44491473,0.00023123,2]
[365119345,1749474651918,-123360.8,0.0002314,10]
[365119346,1749474651932,-1826.05776513,0.00023141,8]
[365119347,1749474651948,-158.193391,0.000232,7]
[365119348,1749474651963,-158.193391,0.000232,7]
[365119349,1749474651980,-72455.52,0.000232,2]
[365119350,1749474652097,-1764.18635304,0.000232,2]
[365119351,1749474652118,-159.96257319,0.00023205,2]
[365119352,1749474652128,-159.96257319,0.00023205,2]
[365119353,1749474652138,-159.96257319,0.00023205,2]
[365119354,1749474652148,-159.96257319,0.00023205,2]
[365119355,1749474652157,-159.96257319,0.00023205,2]
[365119356,1749474652167,-159.96257319,0.00023205,2]
[365119357,1749474652176,-500.0,0.0002321,2]
[365119358,1749474652186,-2750.0,0.00023215,7]
[365119359,1749474652195,-514.54290009,0.00023228,2]
[365119360,1749474652205,-1826.05776513,0.00023245,8]
[365119361,1749474652215,-1132.82867022,0.00023254,73]
[365119362,1749474652224,-802.13665249,0.00023268,2]
[365119363,1749474652234,-1500.0,0.00023268,2]
[365119364,1749474652243,-505.78867747,0.00023268,2]
[365119365,1749474652253,-1500.0,0.00023268,2]
[365119366,1749474652263,-504.42654874,0.00023268,2]
[365119367,1749474652273,-1002.64960961,0.00023268,2]
[365119368,1749474652283,-1006.27683546,0.00023268,2]
[365119369,1749474652292,-1001.69412432,0.00023268,2]
[365119370,1749474652302,-1500.0,0.00023268,2]
[365119371,1749474652312,-1095.48,0.00023277,3]
[365119372,1749474652322,-547.74,0.00023277,3]
[365119373,1749474652332,-440.0,0.00023287,4]
[365119374,1749474652341,-440.0,0.00023287,4]
[365119375,1749474652351,-248.91941051,0.00023287,4]
[365119376,1749474652360,-555.00691686,0.00023287,4]
[365119377,1749474652370,-440.0,0.00023287,4]
[365119378,1749474652379,-449.44253526,0.00023287,4]
[365119379,1749474652389,-440.0,0.00023287,4]
[365119380,1749474652399,-440.0,0.00023287,4]
[365119381,1749474652408,-440.0,0.00023287,4]
[365119382,1749474652417,-348.24031496,0.00023287,4]
[365119383,1749474652427,-310.0,0.00023287,4]
[365119384,1749474652437,-440.0,0.00023287,4]
[365119385,1749474652446,-370.0,0.00023287,4]
[365119386,1749474652456,-440.0,0.00023287,4]
[365119387,1749474652466,-225.63563806,0.00023287,4]
[365119388,1749474652476,-440.0,0.00023287,4]
[365119389,1749474652485,-405.26542395,0.00023287,4]
[365119390,1749474652495,-440.0,0.00023287,4]
[365119391,1749474652504,-440.0,0.00023287,4]
[365119392,1749474652514,-360.0,0.00023287,4]
[365119393,1749474652524,-413.58500136,0.00023287,4]
[365119394,1749474652534,-440.0,0.00023287,4]
[365119395,1749474652544,-440.0,0.00023287,4]
[365119396,1749474652553,-440.0,0.00023287,4]
[365119397,1749474652562,-440.0,0.00023287,4]
[365119398,1749474652572,-440.0,0.00023287,4]
[365119399,1749474652582,-430.28075095,0.00023287,4]
[365119400,1749474652592,-350.0,0.00023287,4]
[365119401,1749474652602,-440.0,0.00023287,4]
[365119402,1749474652611,-440.0,0.00023287,4]
[365119403,1749474652621,-440.0,0.00023287,4]
[365119404,1749474652631,-440.0,0.00023287,4]
[365119405,1749474652641,-440.0,0.00023287,4]
[365119406,1749474652651,-440.0,0.00023287,2]
[365119407,1749474652666,-440.0,0.00023287,4]
[365119408,1749474652679,-440.0,0.00023287,4]
[365119409,1749474652689,-440.0,0.00023287,4]
[365119410,1749474652699,-440.0,0.00023287,4]
[365119411,1749474652708,-440.0,0.00023287,4]
[365119412,1749474652718,-440.0,0.00023287,4]
[365119413,1749474652728,-440.0,0.00023287,4]
[365119414,1749474652739,-440.0,0.00023287,4]
[365119415,1749474652749,-440.0,0.00023287,4]
[365119416,1749474652759,-8516.89,0.00023287,4]
[365119417,1749474652769,-370.0,0.00023287,4]
[365119418,1749474652778,-532.02,0.00023287,4]
[365119419,1749474652788,-653.57,0.00023287,4]
[365119420,1749474652798,-3787.32,0.00023287,4]
[365119421,1749474652808,-440.0,0.00023287,4]
[365119422,1749474652818,-440.0,0.00023287,4]
[365119423,1749474652829,-1938.33,0.00023287,4]
[365119424,1749474652839,-547.08,0.00023287,4]
[365119425,1749474652849,-416.6216569,0.00023287,4]
[365119426,1749474652858,-151.0,0.00023287,7]
[365119427,1749474652868,-440.0,0.00023287,4]
[365119428,1749474652878,-440.0,0.00023287,4]
[365119429,1749474652887,-440.0,0.00023287,4]
[365119430,1749474652897,-410.0,0.00023287,4]
[365119431,1749474652907,-695.15,0.00023287,4]
[365119432,1749474652916,-4898.39,0.00023287,4]
[365119433,1749474652925,-440.0,0.00023287,4]
[365119434,1749474652934,-440.0,0.00023287,4]
[365119435,1749474652943,-440.0,0.00023287,4]
[365119436,1749474652953,-476.98738653,0.00023287,4]
[365119437,1749474652962,-663.04,0.00023287,4]
[365119438,1749474652971,-440.0,0.00023287,4]
[365119439,1749474652980,-440.0,0.00023287,4]
[365119440,1749474652990,-440.0,0.00023287,4]
[365119441,1749474653000,-440.0,0.00023287,4]
[365119442,1749474653010,-440.0,0.00023287,4]
[365119443,1749474653020,-440.0,0.00023287,4]
[365119444,1749474653030,-440.0,0.00023287,4]
[365119445,1749474653040,-686.85,0.00023287,4]
[365119446,1749474653051,-1865.17,0.00023287,4]
[365119447,1749474653060,-440.0,0.00023287,4]
[365119448,1749474653070,-440.0,0.00023287,4]
[365119449,1749474653081,-995.36,0.00023287,4]
[365119450,1749474653091,-4114.26,0.00023287,4]
[365119451,1749474653101,-4986.72,0.00023287,4]
[365119452,1749474653111,-2745.12,0.00023287,4]
[365119453,1749474653121,-1090.86,0.00023287,4]
[365119454,1749474653133,-375.81428976,0.00023287,4]
[365119455,1749474653143,-440.0,0.00023287,4]
[365119456,1749474653152,-588.56,0.00023287,4]
[365119457,1749474653163,-440.0,0.00023287,4]
[365119458,1749474653173,-979.69,0.00023287,4]
[365119459,1749474653183,-440.0,0.00023287,4]
[365119460,1749474653193,-472.24,0.00023287,4]
[365119461,1749474653203,-440.0,0.00023287,4]
[365119462,1749474653213,-440.0,0.00023287,4]
[365119463,1749474653223,-440.0,0.00023287,4]
[365119464,1749474653233,-440.0,0.00023287,4]
[365119465,1749474653243,-440.0,0.00023287,4]
[365119466,1749474653253,-587.37314598,0.00023287,4]
[365119467,1749474653263,-1254.23,0.00023287,4]
[365119468,1749474653274,-440.0,0.00023287,4]
[365119469,1749474653285,-440.0,0.00023287,4]
[365119470,1749474653295,-1920.52,0.00023287,4]
[365119471,1749474653305,-1636.47,0.00023287,4]
[365119472,1749474653316,-440.0,0.00023287,4]
[365119473,1749474653327,-627.51,0.00023287,4]
[365119474,1749474653338,-440.0,0.00023287,4]
[365119475,1749474653349,-440.0,0.00023287,4]
[365119476,1749474653358,-736.45,0.00023287,4]
[365119477,1749474653369,-440.0,0.00023287,4]
[365119478,1749474653378,-440.0,0.00023287,4]
[365119479,1749474653388,-440.0,0.00023287,4]
[365119480,1749474653397,-440.0,0.00023287,4]
[365119481,1749474653407,-607.69,0.00023287,4]
[365119482,1749474653417,-440.0,0.00023287,4]
[365119483,1749474653427,-847.9,0.00023287,4]
[365119484,1749474653437,-440.0,0.00023287,4]
[365119485,1749474653447,-440.0,0.00023287,4]
[365119486,1749474653457,-1920.28,0.00023287,4]
[365119487,1749474653467,-440.0,0.00023287,4]
[365119488,1749474653476,-440.0,0.00023287,4]
[365119489,1749474653486,-2918.21,0.00023287,4]
[365119490,1749474653496,-440.0,0.00023287,4]
[365119491,1749474653506,-440.95216294,0.00023287,4]
[365119492,1749474653516,-440.0,0.00023287,4]
[365119493,1749474653525,-440.0,0.00023287,4]
[365119494,1749474653535,-440.0,0.00023287,4]
[365119495,1749474653545,-440.0,0.00023287,4]